bitfinex-derivatives/quotes_BNBF0:USTF0_20250101
["timestamp","ask_amount","ask_price","bid_price","bid_amount"]
[1735774046009,0.88952812,707.82,707.05,1.06017598]
[1735774046208,0.88952812,707.81,707.05,1.06017598]
[1735774046408,0.88952812,707.8,707.05,1.06017598]
[1735774046608,0.88952812,707.79,707.05,1.06017598]
[1735774046908,1.4759,707.96,707.06,1.06017598]
[1735774046909,0.88952812,707.78,707.06,1.06017598]
[1735774047108,0.88952812,707.77,707.06,1.06017598]
[1735774047308,0.88952812,707.76,707.06,1.06017598]
[1735774047509,0.88952812,707.75,707.06,1.06017598]
[1735774047710,0.88952812,707.74,707.06,1.06017598]
[1735774048012,1.4759,707.96,706.84,0.28294946]
[1735774048013,0.88952812,707.73,707.07,1.06017598]
[1735774048214,0.88952812,707.72,707.07,1.06017598]
[1735774048408,0.88952812,707.71,707.07,1.06017598]
[1735774048613,0.88952812,707.7,707.07,1.06017598]
[1735774048810,0.88952812,707.69,707.07,1.06017598]
[1735774049009,0.88952812,707.68,707.07,1.06017598]
[1735774049213,0.88959206,707.67,707.03,1.06017598]
[1735774049411,0.88959206,707.66,707.03,1.06017598]
[1735774049613,0.88959206,707.65,707.03,1.06017598]
[1735774049813,0.88959206,707.64,707.03,1.06017598]
[1735774050010,0.88959206,707.63,707.03,1.06017598]
[1735774050209,1.4759,707.96,706.84,0.28294946]
[1735774050210,0.88959206,707.62,707.07,1.06017598]
[1735774050409,0.88959206,707.61,707.07,1.06017598]
[1735774050612,0.88959206,707.6,707.07,1.06017598]
[1735774050810,0.88959206,707.59,707.07,1.06017598]
[1735774051014,1.4759,707.96,706.84,0.28294946]
[1735774051015,0.88959206,707.58,707.02,1.06017598]
[1735774051318,0.88959206,707.57,707.02,1.06017598]
[1735774051614,0.88959206,707.56,707.02,1.06017598]
[1735774051814,1.4759,707.96,707.02,1.06017598]
[1735774051815,0.88959206,707.55,707.02,1.06017598]
[1735774052017,0.88959206,707.54,707.03,1.06017598]
[1735774052210,1.4759,707.96,707.03,1.06017598]
[1735774052211,0.8898217,707.53,707.03,1.06017598]
[1735774052410,0.8898217,707.52,707.03,1.06017598]
[1735774052613,1.4759,707.96,707.03,1.06017598]
[1735774052815,0.88993484,707.95,707.03,1.06017598]
[1735774053012,0.88993484,707.94,707.03,1.06017598]
[1735774053211,0.88993484,707.93,707.03,1.06017598]
[1735774053412,0.88993484,707.92,707.04,1.06017598]
[1735774053611,0.88993484,707.91,707.04,1.06017598]
[1735774053819,0.88993484,707.9,707.04,1.06017598]
[1735774054018,0.88993484,707.89,707.04,1.06017598]
[1735774054218,0.88993484,707.88,707.04,1.06017598]
[1735774054421,0.88993484,707.87,707.04,1.06017598]
[1735774054619,0.88993484,707.87,706.84,0.28294946]
[1735774054620,0.88993484,707.86,707.06,1.06017598]
[1735774054819,0.88993484,707.85,707.06,1.06017598]
[1735774055021,0.88993484,707.84,707.06,1.06017598]
[1735774055220,1.47607215,707.87,707.06,1.06017598]
[1735774055420,0.89035255,707.86,707.06,1.06017598]
[1735774055613,0.89035255,707.86,706.84,0.28294946]
[1735774055614,0.89035255,707.85,707.01,1.06017598]
[1735774055819,0.89035255,707.84,707.01,1.06017598]
[1735774056019,0.89035255,707.83,707.01,1.06017598]
[1735774056318,0.89035255,707.82,707.01,1.06017598]
[1735774056518,0.89035255,707.81,707.01,1.06017598]
[1735774056715,0.89035255,707.8,706.97,1.06017598]
[1735774056919,0.89035255,707.79,706.97,1.06017598]
[1735774057117,0.89035255,707.78,706.97,1.06017598]
[1735774057314,0.89035255,707.77,706.97,1.06017598]
[1735774057520,0.89035255,707.76,706.97,1.06017598]
[1735774057720,0.89035255,707.75,706.97,1.06017598]
[1735774058017,0.89035255,707.74,706.96,1.06017598]
[1735774058216,0.89035255,707.73,706.96,1.06017598]
[1735774058420,0.89063713,707.72,706.96,1.06017598]
[1735774058619,0.89063713,707.71,706.96,1.06017598]
[1735774058822,0.89063713,707.7,706.96,1.06017598]
[1735774059023,0.89063713,707.69,706.96,1.06017598]
[1735774059218,0.89063713,707.68,706.96,1.06017598]
[1735774059423,0.89063713,707.67,706.96,1.06017598]
[1735774059624,0.89063713,707.66,706.96,1.06017598]
[1735774059817,0.89063713,707.65,706.96,1.06017598]
[1735774060021,0.89063713,707.64,706.96,1.06017598]
[1735774060221,0.89063713,707.63,706.96,1.06017598]
[1735774060424,0.89063713,707.62,706.96,1.06017598]
[1735774060624,0.89063713,707.62,706.84,0.28294946]
[1735774060625,0.89063713,707.61,706.93,1.06017598]
[1735774060824,0.89063713,707.6,706.93,1.06017598]
[1735774061121,0.89063713,707.59,706.93,1.06017598]
[1735774061326,0.89063713,707.58,706.93,1.06017598]
[1735774061625,0.693,707.62,706.84,0.28294946]
[1735774061626,0.89088191,707.57,706.94,1.06017598]
[1735774061822,0.89088191,707.56,706.94,1.06017598]
[1735774062119,0.89090051,707.55,706.94,1.06017598]
[1735774062324,0.89090051,707.54,706.94,1.06017598]
[1735774062519,0.89090051,707.53,706.94,1.06017598]
[1735774062722,0.89090051,707.53,706.84,0.28294946]
[1735774062723,0.89090051,707.52,706.89,1.06017598]
[1735774062919,0.89090051,707.51,706.89,1.06017598]
[1735774063119,0.89090051,707.5,706.89,1.06017598]
[1735774063322,0.89090051,707.49,706.89,1.06017598]
[1735774063523,0.89090051,707.48,706.89,1.06017598]
[1735774063724,0.8910313,707.47,706.89,1.06017598]
[1735774063919,0.8910313,707.46,706.88,1.06017598]
[1735774064121,0.8910313,707.45,706.88,1.06017598]
[1735774064320,0.8910313,707.44,706.88,1.06017598]
[1735774064520,0.8910313,707.43,706.88,1.06017598]
[1735774064720,0.89109432,707.42,706.88,1.06017598]
[1735774065026,0.89109432,707.41,706.88,1.06017598]
[1735774065227,0.89109432,707.4,706.91,1.06017598]
[1735774065425,0.89109432,707.39,706.91,1.06017598]
[1735774065628,0.89109432,707.38,706.91,1.06017598]
[1735774065818,0.89109432,707.37,706.91,1.06017598]
[1735774066023,0.89109432,707.36,706.91,1.06017598]
[1735774066220,0.89109432,707.35,706.91,1.06017598]
[1735774066427,0.89109432,707.34,706.92,1.06017598]
[1735774066626,0.89109432,707.33,706.92,1.06017598]
[1735774066823,0.89109432,707.32,706.92,1.06017598]
[1735774067027,0.89109432,707.31,706.92,1.06017598]
[1735774067329,0.89109432,707.3,706.92,1.06017598]
[1735774067527,0.89109432,707.29,706.92,1.06017598]
[1735774067728,0.693,707.62,706.9,1.06017598]
[1735774067929,0.89101351,707.61,706.9,1.06017598]
[1735774068128,0.89101351,707.6,706.9,1.06017598]
[1735774068427,0.89101351,707.59,706.9,1.06017598]
[1735774068628,0.89101351,707.58,706.9,1.06017598]
[1735774068829,0.89101351,707.57,706.9,1.06017598]
[1735774069028,0.693,707.62,706.84,0.28294946]
[1735774069029,0.89101351,707.56,706.91,1.06017598]
[1735774069231,0.89101351,707.55,706.91,1.06017598]
[1735774069423,0.89101351,707.54,706.91,1.06017598]
[1735774069626,0.89101351,707.53,706.91,1.06017598]
[1735774069822,0.89101351,707.52,706.91,1.06017598]
[1735774070027,0.89101351,707.51,706.86,1.06017598]
[1735774070227,0.89101351,707.5,706.86,1.06017598]
[1735774070428,0.89101351,707.49,706.86,1.06017598]
[1735774070629,0.89101351,707.48,706.86,1.06017598]
[1735774070929,0.89085589,707.47,706.86,1.06017598]
[1735774071227,0.89085589,707.46,706.86,1.06017598]
[1735774071528,0.890819,707.45,706.86,1.06017598]
[1735774071827,0.890819,707.44,706.86,1.06017598]
[1735774072027,0.890819,707.43,706.87,1.06017598]
[1735774072226,0.890819,707.42,706.87,1.06017598]
[1735774072420,0.890819,707.41,706.87,1.06017598]
[1735774072621,0.890819,707.4,706.87,1.06017598]
[1735774072828,0.890819,707.39,706.87,1.06017598]
[1735774073027,0.890819,707.38,706.87,1.06017598]
[1735774073227,0.693,707.62,706.87,1.06017598]
[1735774073228,0.890819,707.37,706.87,1.06017598]
[1735774073428,0.890819,707.36,706.84,0.28294946]
[1735774073625,0.890819,707.35,706.84,0.28294946]
[1735774073824,0.693,707.62,706.84,0.28294946]
[1735774074023,0.89071833,707.61,706.84,0.28294946]
[1735774074330,0.89071833,707.6,706.84,0.28294946]
[1735774074530,0.89071833,707.59,706.84,0.28294946]
[1735774074732,0.89071833,707.58,706.84,0.28294946]
[1735774074928,0.89071833,707.57,706.84,0.28294946]
[1735774075125,0.89071833,707.56,706.84,0.28294946]
[1735774075431,0.89071833,707.55,706.84,0.28294946]
[1735774075631,0.89071833,707.54,706.84,0.28294946]
[1735774075832,0.89071833,707.53,706.85,1.06017598]
[1735774076032,0.89071833,707.52,706.85,1.06017598]
[1735774076332,0.89071833,707.51,706.85,1.06017598]
[1735774076634,0.89071833,707.5,706.85,1.06017598]
[1735774076927,0.89062663,707.49,706.85,1.06017598]
[1735774077132,0.89062663,707.48,706.85,1.06017598]
[1735774077431,0.89062663,707.47,706.85,1.06017598]
[1735774077732,0.89062663,707.46,706.85,1.06017598]
[1735774077933,0.89062663,707.45,706.85,1.06017598]
[1735774078126,0.89062663,707.44,706.85,1.06017598]
[1735774078329,0.89062663,707.43,706.85,1.06017598]
[1735774078530,0.89062663,707.42,706.85,1.06017598]
[1735774078728,0.89062663,707.41,706.85,1.06017598]
[1735774078930,0.89062663,707.4,706.85,1.06017598]
[1735774079128,0.89062663,707.39,706.85,1.06017598]
[1735774079329,0.89062663,707.38,706.85,1.06017598]
[1735774079531,0.89062663,707.37,706.85,1.06017598]
[1735774079738,0.693,707.62,706.84,0.28294946]
[1735774079933,0.89053372,707.61,706.84,0.28294946]
[1735774080133,0.89053792,707.6,706.84,0.28294946]
[1735774080431,0.693,707.62,706.84,0.28294946]
[1735774080432,0.89053792,707.59,706.84,0.28294946]
[1735774080727,0.89053792,707.58,706.84,0.28294946]
[1735774080928,0.89053792,707.57,706.84,0.28294946]
[1735774081130,0.89053792,707.56,706.84,0.28294946]
[1735774081435,0.89053792,707.55,706.84,0.28294946]
[1735774081734,0.89053792,707.54,706.84,0.28294946]
[1735774081934,0.89053792,707.53,706.84,0.28294946]
[1735774082127,0.89053792,707.52,706.84,0.28294946]
[1735774082329,0.693,707.62,706.84,0.28294946]
[1735774082533,0.89048802,707.61,706.84,0.28294946]
[1735774082733,0.89048802,707.6,706.84,0.28294946]
[1735774082933,0.89048802,707.59,706.84,0.28294946]
[1735774083136,2.16953664,707.62,706.84,0.28294946]
[1735774083137,0.89048802,707.58,706.84,0.28294946]
[1735774083335,0.89048802,707.57,706.84,0.28294946]
[1735774083538,0.89048802,707.56,706.84,0.28294946]
[1735774083836,0.89048802,707.55,706.84,0.28294946]
[1735774084036,0.89048802,707.54,706.84,0.28294946]
[1735774084337,2.16953664,707.62,706.84,0.28294946]
[1735774084338,0.89048802,707.53,706.84,0.28294946]
[1735774084537,0.89048802,707.52,706.84,0.28294946]
[1735774084737,0.89048802,707.51,706.84,0.28294946]
[1735774084937,0.89048802,707.5,706.84,0.28294946]
[1735774085133,2.16953664,707.62,706.84,0.28294946]
[1735774085336,0.89027428,707.61,706.84,0.28294946]
[1735774085538,0.89027428,707.6,706.84,0.28294946]
[1735774085736,0.89027428,707.59,706.84,0.28294946]
[1735774085936,0.89027428,707.58,706.84,0.28294946]
[1735774086136,0.89027428,707.57,706.84,0.28294946]
[1735774086339,0.89027428,707.56,706.84,0.28294946]
[1735774086639,0.89027428,707.55,706.84,0.28294946]
[1735774086839,0.89027428,707.54,706.84,0.28294946]
[1735774087040,0.89027428,707.53,706.84,0.28294946]
[1735774087239,0.89027428,707.52,706.84,0.28294946]
[1735774087441,0.89027428,707.51,706.84,0.28294946]
[1735774087642,0.89027428,707.5,706.84,0.28294946]
[1735774087836,0.89027428,707.49,706.84,0.28294946]
[1735774088036,0.89027428,707.48,706.84,0.28294946]
[1735774088241,0.89019125,707.47,706.84,0.28294946]
[1735774088542,0.89019125,707.46,706.84,0.28294946]
[1735774088840,0.89019125,707.45,706.84,0.28294946]
[1735774089041,0.89019125,707.44,706.84,0.28294946]
[1735774089238,2.16953664,707.62,706.84,0.28294946]
[1735774089239,0.89019125,707.43,706.84,0.28294946]
[1735774089439,2.16953664,707.62,706.84,0.28294946]
[1735774089440,0.89019125,707.42,706.84,0.28294946]
[1735774089640,0.89019125,707.41,706.84,0.28294946]
[1735774089841,0.89019125,707.4,706.84,0.28294946]
[1735774090040,0.89019125,707.39,706.84,0.28294946]
[1735774090235,0.89019125,707.38,706.84,0.28294946]
[1735774090441,0.89019125,707.37,706.84,0.28294946]
[1735774090641,1.47653664,707.62,706.84,0.28294946]
[1735774090642,0.89019125,707.36,706.84,0.28294946]
[1735774090840,0.89019125,707.35,706.84,0.28294946]
[1735774091137,0.89019125,707.34,706.84,0.28294946]
[1735774091342,0.89019125,707.33,706.84,0.28294946]
[1735774091642,0.89019125,707.32,706.84,0.28294946]
[1735774091942,0.89008384,707.31,706.84,0.28294946]
[1735774092145,0.89008384,707.3,706.84,0.28294946]
[1735774092343,0.89008384,707.29,706.84,0.28294946]
[1735774092541,0.89008384,707.28,706.84,0.28294946]
[1735774092837,0.89008384,707.27,706.84,0.28294946]
[1735774093035,0.89008384,707.26,706.84,0.28294946]
[1735774093239,0.693,707.36,706.84,0.28294946]
[1735774093240,0.89008384,707.25,706.84,0.28294946]
[1735774093543,0.89008384,707.24,706.84,0.28294946]
[1735774093738,0.89008384,707.23,706.84,0.28294946]
[1735774093941,0.89008384,707.22,706.84,0.28294946]
[1735774094141,0.693,707.36,706.84,0.28294946]
[1735774094441,0.89013572,707.35,706.84,0.28294946]
[1735774094741,0.89013572,707.34,706.84,0.28294946]
[1735774095044,0.89013572,707.33,706.84,1.34312544]
[1735774095241,0.89013572,707.32,706.84,1.34312544]
[1735774095437,0.89013572,707.31,706.84,1.34312544]
[1735774095643,0.89013572,707.3,706.84,1.34312544]
[1735774095842,0.89013572,707.29,706.94,1.06017598]
[1735774096044,0.89013572,707.28,706.94,1.06017598]
[1735774096239,0.693,707.36,706.94,1.06017598]
[1735774096438,0.89017692,707.35,706.94,1.06017598]
[1735774096640,0.89017692,707.34,706.94,1.06017598]
[1735774096844,0.89017692,707.33,706.94,1.06017598]
[1735774097039,0.693,707.36,706.94,1.06017598]
[1735774097040,0.89017692,707.32,706.94,1.06017598]
[1735774097346,0.89021005,707.31,706.94,1.06017598]
[1735774097546,0.89021005,707.3,706.94,1.06017598]
[1735774097742,0.693,707.36,706.94,1.06017598]
[1735774097942,0.89023779,707.35,706.98,1.06017598]
[1735774098146,0.89023779,707.34,706.98,1.06017598]
[1735774098348,0.89023779,707.33,706.98,1.06017598]
[1735774098547,0.89023779,707.32,706.98,1.06017598]
[1735774098847,0.89023779,707.31,706.86,1.06017598]
[1735774099047,0.89023779,707.3,706.86,1.06017598]
[1735774099245,0.89023779,707.29,706.86,1.06017598]
[1735774099440,0.693,707.36,706.86,1.06017598]
[1735774099646,0.89032174,707.35,706.86,1.06017598]
[1735774099840,0.89032174,707.34,706.86,1.06017598]
[1735774100046,0.89032174,707.33,706.87,1.06017598]
[1735774100239,0.89032174,707.32,706.87,1.06017598]
[1735774100444,0.8903149,707.31,706.87,1.06017598]
[1735774100641,0.8903149,707.3,706.87,1.06017598]
[1735774100948,0.89034271,707.29,706.86,1.06017598]
[1735774101146,0.693,707.36,706.86,1.06017598]
[1735774101345,0.89033671,707.35,706.86,1.06017598]
[1735774101544,0.693,707.36,706.86,1.06017598]
[1735774101545,0.89033671,707.34,706.86,1.06017598]
[1735774101747,0.89033671,707.33,706.86,1.06017598]
[1735774101942,0.89033671,707.32,706.86,1.06017598]
[1735774102144,0.89033671,707.31,706.86,1.06017598]
[1735774102448,0.89033671,707.3,706.87,1.06017598]
[1735774102649,0.693,707.36,706.87,1.06017598]
[1735774102849,0.89037925,707.35,706.87,1.06017598]
[1735774103047,0.89037925,707.34,706.87,1.06017598]
[1735774103243,0.89037925,707.33,706.87,1.06017598]
[1735774103443,0.693,707.36,706.87,1.06017598]
[1735774103644,0.89041178,707.35,706.87,1.06017598]
[1735774103848,0.89041178,707.34,706.87,1.06017598]
[1735774104049,0.89041178,707.33,706.87,1.06017598]
[1735774104348,0.89041178,707.32,706.87,1.06017598]
[1735774104545,0.89041178,707.31,706.87,1.06017598]
[1735774104747,0.89041178,707.3,706.87,1.06017598]
[1735774104943,0.89051079,707.29,706.87,1.06017598]
[1735774105144,0.693,707.36,706.87,1.06017598]
[1735774105349,0.89051113,707.35,706.87,1.06017598]
[1735774105547,0.89051113,707.34,706.87,1.06017598]
[1735774105744,0.89051113,707.33,706.87,1.06017598]
[1735774105945,0.89051113,707.32,706.87,1.06017598]
[1735774106149,0.89051113,707.31,706.87,1.06017598]
[1735774106451,0.89051113,707.3,706.87,1.06017598]
[1735774106644,0.89080929,707.29,706.87,1.06017598]
[1735774106847,0.693,707.36,706.87,1.06017598]
[1735774107044,0.89078323,707.35,706.87,1.06017598]
[1735774107352,0.89078323,707.34,706.87,1.06017598]
[1735774107552,0.89078323,707.33,706.87,1.06017598]
[1735774107745,0.89078323,707.32,706.87,1.06017598]
[1735774107946,0.693,707.36,706.87,1.06017598]
[1735774108151,0.89093654,707.35,706.91,1.06017598]
[1735774108345,0.89093654,707.34,706.91,1.06017598]
[1735774108651,0.89093654,707.33,706.91,1.06017598]
[1735774108846,0.89093654,707.32,706.91,1.06017598]
[1735774109051,0.693,707.36,706.91,1.06017598]
[1735774109351,0.89109899,707.35,706.91,1.06017598]
[1735774109552,0.89109899,707.34,707.0,1.06017598]
[1735774109746,0.89109899,707.33,707.0,1.06017598]
[1735774109950,0.89109899,707.32,707.0,1.06017598]
[1735774110147,0.89126872,707.31,707.0,1.06017598]
[1735774110352,0.89126872,707.3,707.0,1.06017598]
[1735774110552,0.89126872,707.3,706.84,0.28294946]
[1735774110553,0.89126872,707.29,706.92,1.06017598]
[1735774110852,0.693,707.36,706.92,1.06017598]
[1735774111053,0.89147328,707.35,706.92,1.06017598]
[1735774111253,0.89147328,707.34,706.92,1.06017598]
[1735774111454,0.89147328,707.33,706.92,1.06017598]
[1735774111655,0.89147328,707.32,706.92,1.06017598]
[1735774111953,0.89159002,707.31,706.92,1.06017598]
[1735774112149,0.89159002,707.3,706.92,1.06017598]
[1735774112356,0.89159002,707.29,706.92,1.06017598]
[1735774112550,0.89159002,707.28,706.92,1.06017598]
[1735774112755,0.89173381,707.27,706.92,1.06017598]
[1735774112955,1.47647922,707.8,706.87,1.06017598]
[1735774113156,0.693,707.26,706.87,1.06017598]
[1735774115759,0.89191838,707.25,706.87,1.06017598]
[1735774115961,0.89191838,707.24,706.87,1.06017598]
[1735774116160,0.89191838,707.23,706.87,1.06017598]
[1735774116359,0.89191838,707.22,706.87,1.06017598]
[1735774116560,0.693,707.26,706.87,1.06017598]
[1735774116761,0.89195144,707.25,706.87,1.06017598]
[1735774116963,0.89195144,707.24,706.84,0.28294946]
[1735774117163,0.89195144,707.23,706.84,0.28294946]
[1735774117464,0.89195144,707.22,706.84,0.28294946]
[1735774117665,0.89195144,707.21,706.84,0.28294946]
[1735774117863,0.693,707.26,706.84,0.28294946]
[1735774118058,0.89197697,707.25,706.84,0.28294946]
[1735774118262,0.89197697,707.24,706.84,0.28294946]
[1735774118562,0.89197697,707.23,706.84,0.28294946]
[1735774118760,0.89197697,707.22,706.84,0.28294946]
[1735774118960,0.693,707.26,706.84,0.28294946]
[1735774118961,0.89197697,707.21,706.84,0.28294946]
[1735774119161,0.89197697,707.2,706.84,0.28294946]
[1735774119365,0.89200689,707.19,706.84,0.28294946]
[1735774119567,0.89200689,707.18,706.84,0.28294946]
[1735774119761,0.89200689,707.17,706.84,0.28294946]
[1735774119966,0.89200689,707.16,706.84,0.28294946]
[1735774120268,0.89202543,707.15,706.84,0.28294946]
[1735774120565,0.693,707.26,706.84,0.28294946]
[1735774120863,0.89199431,707.25,706.84,0.28294946]
[1735774121065,0.89199431,707.24,706.84,0.28294946]
[1735774121367,0.89199431,707.23,706.84,0.28294946]
[1735774121570,0.89199431,707.22,706.84,0.28294946]
[1735774121765,0.89199431,707.21,706.84,0.28294946]
[1735774121966,0.693,707.26,706.84,0.28294946]
[1735774121967,0.89199431,707.2,706.84,0.28294946]
[1735774122168,0.89199431,707.19,706.84,0.28294946]
[1735774122362,0.89199431,707.18,706.84,0.28294946]
[1735774122566,0.693,707.26,706.84,0.28294946]
[1735774122769,0.89197082,707.25,706.84,0.28294946]
[1735774122969,0.89197082,707.24,706.84,0.28294946]
[1735774123168,0.89197082,707.23,706.84,0.28294946]
[1735774123365,0.89197082,707.22,706.84,0.28294946]
[1735774123569,0.89197082,707.21,706.87,1.05949539]
[1735774123864,0.89197082,707.2,706.87,1.05949539]
[1735774124069,0.693,707.26,706.87,1.05949539]
[1735774124269,0.89194721,707.25,706.87,1.05949539]
[1735774124569,0.89194721,707.24,706.87,1.05949539]
[1735774124771,0.89194721,707.23,706.89,1.05949539]
[1735774125070,0.89194721,707.22,706.89,1.05949539]
[1735774125270,0.89194721,707.21,706.89,1.05949539]
[1735774125470,0.89194721,707.2,706.89,1.05949539]
[1735774125769,0.693,707.26,706.89,1.05949539]
[1735774125966,0.89195197,707.25,706.9,1.05949539]
[1735774126269,0.89195197,707.24,706.9,1.05949539]
[1735774126573,0.89195197,707.23,706.9,1.05949539]
[1735774126769,0.89195197,707.22,706.9,1.05949539]
[1735774126968,1.47679773,707.64,706.9,1.05949539]
[1735774126969,0.89195197,707.21,706.9,1.05949539]
[1735774127164,0.89195197,707.2,706.9,1.05949539]
[1735774127371,0.693,707.2,706.9,1.05949539]
[1735774128272,0.693,707.2,706.84,0.28294946]
[1735774128273,0.89195796,707.19,706.91,1.05949539]
[1735774128568,0.693,707.2,706.91,1.05949539]
[1735774128772,0.89196433,707.19,706.91,1.05949539]
[1735774128971,0.693,707.2,706.91,1.05949539]
[1735774129272,0.89195738,707.19,706.91,1.05949539]
[1735774129472,0.693,707.2,706.94,1.05949539]
[1735774129672,0.89196149,707.19,706.94,1.05949539]
[1735774129873,0.693,707.2,706.94,1.05949539]
[1735774130074,0.89196044,707.19,706.94,1.05949539]
[1735774130372,0.693,707.2,706.94,1.05949539]
[1735774130573,0.89197266,707.19,706.99,1.05949539]
[1735774130871,0.89196913,707.18,706.99,1.05949539]
[1735774131067,0.693,707.2,706.99,1.05949539]
[1735774131271,0.89196989,707.19,706.99,1.05949539]
[1735774131471,0.693,707.2,706.99,1.05949539]
[1735774131675,0.89197795,707.19,706.99,1.05949539]
[1735774131969,0.693,707.2,706.99,1.05949539]
[1735774132168,0.89197795,707.19,706.99,1.05949539]
[1735774132369,0.693,707.2,706.99,1.05949539]
[1735774132574,0.89197897,707.19,706.99,1.05949539]
[1735774132770,0.693,707.2,706.99,1.05949539]
[1735774132969,0.8919784,707.19,706.99,1.05949539]
[1735774133166,0.693,707.2,706.99,1.05949539]
[1735774134971,0.693,707.2,707.01,1.05949539]
[1735774136077,0.693,707.2,707.03,1.05949539]
[1735774137178,0.693,707.2,707.04,1.05949539]
[1735774139276,0.693,707.2,706.84,0.28294946]
[1735774139877,0.693,707.2,707.03,1.05977623]
[1735774145183,0.693,707.2,707.01,1.05977623]
[1735774146786,0.693,707.2,706.99,1.05977623]
[1735774147678,0.693,707.2,707.0,1.05977623]
[1735774150487,0.693,707.2,707.01,1.05977623]
[1735774152388,1.47654709,707.72,707.01,1.05977623]
[1735774152687,0.89238157,707.71,707.01,1.05977623]
[1735774152883,0.89238157,707.7,707.01,1.05977623]
[1735774153087,0.89238157,707.69,707.01,1.05977623]
[1735774153383,1.58538157,707.68,707.01,1.05977623]
[1735774153588,0.89238157,707.67,707.01,1.05977623]
[1735774153790,0.89238157,707.66,707.01,1.05977623]
[1735774153983,0.89238157,707.65,707.01,1.05977623]
[1735774154187,0.89238157,707.64,707.01,1.05977623]
[1735774154389,0.89238157,707.63,707.01,1.05977623]
[1735774154585,0.693,707.68,707.01,1.05977623]
[1735774154784,0.89254889,707.67,707.01,1.05977623]
[1735774154990,0.89254889,707.66,707.01,1.05977623]
[1735774155191,0.89254906,707.65,707.01,1.05977623]
[1735774155389,0.89254906,707.64,707.04,1.05977623]
[1735774155582,0.89254906,707.63,707.04,1.05977623]
[1735774155791,0.89254906,707.62,707.04,1.05977623]
[1735774155991,0.89254906,707.61,707.04,1.05977623]
[1735774156189,0.89254906,707.6,707.04,1.05977623]
[1735774156389,0.89254906,707.59,707.04,1.05977623]
[1735774156594,0.89254906,707.58,707.04,1.05977623]
[1735774156789,0.89254906,707.57,707.04,1.05977623]
[1735774156988,0.693,707.68,707.04,1.05977623]
[1735774156989,0.89244262,707.56,707.04,1.05977623]
[1735774157290,0.89244262,707.55,707.04,1.05977623]
[1735774157493,0.89244262,707.54,707.04,1.05977623]
[1735774157696,0.89238242,707.53,707.05,1.05977623]
[1735774157893,0.89238242,707.52,707.05,1.05977623]
[1735774158095,0.89238242,707.51,707.05,1.05977623]
[1735774158295,0.89238242,707.5,707.05,1.05977623]
[1735774158490,0.89238242,707.49,707.05,1.05977623]
[1735774158794,0.89238242,707.48,707.05,1.05977623]
[1735774158994,0.693,707.68,706.84,0.28294946]
[1735774158995,0.89238242,707.47,707.04,1.05977623]
[1735774159195,0.89238242,707.46,707.04,1.05977623]
[1735774159394,0.89238242,707.45,707.04,1.05977623]
[1735774159597,0.89238242,707.44,707.04,1.05977623]
[1735774159795,0.89238242,707.43,707.04,1.05977623]
[1735774159994,0.89238242,707.42,707.04,1.05977623]
[1735774160195,0.693,707.68,706.84,0.28294946]
[1735774160196,0.89238242,707.41,707.05,1.05977623]
[1735774160391,0.693,707.68,707.05,1.05977623]
[1735774160696,0.89173956,707.67,707.05,1.05977623]
[1735774160894,0.89173956,707.66,707.05,1.05977623]
[1735774161090,0.89173956,707.65,707.05,1.05977623]
[1735774161293,0.89173956,707.64,707.05,1.05977623]
[1735774161496,0.89173956,707.64,706.84,0.28294946]
[1735774161497,0.89173956,707.63,707.04,1.05977623]
[1735774161695,0.89173956,707.62,707.04,1.05977623]
[1735774161995,0.89173956,707.61,707.04,1.05977623]
[1735774162195,0.89173956,707.6,707.04,1.05977623]
[1735774162388,0.89173956,707.59,707.04,1.05977623]
[1735774162593,0.89173956,707.58,707.04,1.05977623]
[1735774162789,0.89173956,707.57,706.97,1.05977623]
[1735774163095,0.89173956,707.56,706.97,1.05977623]
[1735774163295,0.89173956,707.55,706.97,1.05977623]
[1735774163496,0.89173956,707.54,706.97,1.05977623]
[1735774163697,0.89118922,707.53,706.97,1.05977623]
[1735774163897,0.89118922,707.52,706.95,1.05977623]
[1735774164097,0.693,707.68,706.95,1.05977623]
[1735774164297,0.89118618,707.67,706.95,1.05977623]
[1735774164497,0.89118618,707.66,706.95,1.05977623]
[1735774164699,0.89118618,707.65,706.96,1.05977623]
[1735774164898,0.89118618,707.64,706.96,1.05977623]
[1735774165198,0.89118618,707.63,706.96,1.05977623]
[1735774165399,0.89118618,707.62,706.96,1.05977623]
[1735774165597,0.89118618,707.61,706.96,1.05977623]
[1735774165801,0.89118618,707.6,706.95,1.05977623]
[1735774166100,0.89118618,707.59,706.95,1.05977623]
[1735774166294,0.89118618,707.58,706.95,1.05977623]
[1735774166496,0.693,707.68,706.95,1.05977623]
[1735774166497,0.89118618,707.57,706.95,1.05977623]
[1735774166698,0.89118618,707.56,706.95,1.05977623]
[1735774166894,0.89118618,707.55,706.95,1.05977623]
[1735774167094,0.89118618,707.54,706.92,1.05977623]
[1735774167300,0.89118618,707.53,706.92,1.05977623]
[1735774167497,0.89118618,707.52,706.92,1.05977623]